bitfinex-derivatives/quotes_BTCF0:USTF0_20251108
["timestamp","ask_amount","ask_price","bid_price","bid_amount"]
[1762635779976,1.05220056,102130.0,102120.0,0.2904953]
[1762635780177,1.10510091,102130.0,102120.0,0.2904953]
[1762635781181,1.05220056,102130.0,102120.0,0.2904953]
[1762635781479,1.05220056,102130.0,102120.0,0.3033153]
[1762635783884,1.05220056,102130.0,102120.0,0.2904953]
[1762635790983,1.05220056,102130.0,102120.0,0.3037453]
[1762635791178,0.92453447,102130.0,102120.0,0.3037453]
[1762635791379,1.03969056,102130.0,102120.0,0.3037453]
[1762635793682,0.94174486,102130.0,102120.0,0.41890139]
[1762635793886,0.90647796,102130.0,102120.0,0.41890139]
[1762635795587,0.90647796,102130.0,102120.0,0.27060139]
[1762635796785,0.79132187,102130.0,102120.0,0.27060139]
[1762635797087,0.90647796,102130.0,102120.0,0.27060139]
[1762635801477,0.79132187,102130.0,102120.0,0.41890139]
[1762635801877,0.90647796,102130.0,102120.0,0.41890139]
[1762635804291,0.18487796,102130.0,102120.0,0.41890139]
[1762635804796,0.64362356,102130.0,102120.0,0.3037453]
[1762635807296,0.54567796,102130.0,102120.0,0.3037453]
[1762635808100,0.54567796,102130.0,102120.0,0.41890139]
[1762635808598,0.64362366,102130.0,102120.0,0.41890139]
[1762635809598,0.54567796,102130.0,102120.0,0.41890139]
[1762635812292,0.18487796,102130.0,102120.0,0.41890139]
[1762635813898,0.06972187,102130.0,102120.0,0.41890139]
[1762635815108,0.06972187,102130.0,102120.0,0.47169299]
[1762635816292,0.06672187,102130.0,102120.0,0.47169299]
[1762635818405,0.06672187,102130.0,102120.0,1.02021299]
[1762635822998,0.06672187,102130.0,102120.0,1.13536908]
[1762635823198,0.04384187,102130.0,102120.0,1.49616908]
[1762635823399,0.001,102130.0,102120.0,1.49616908]
[1762635827013,0.04623702,102140.0,102130.0,0.05761]
[1762635827314,0.0678331,102140.0,102130.0,0.63151169]
[1762635827812,0.0447531,102140.0,102130.0,0.63151169]
[1762635828113,0.0217431,102140.0,102130.0,0.63151169]
[1762635828320,0.0237431,102140.0,102130.0,0.63151169]
[1762635828818,0.0257431,102140.0,102130.0,0.63151169]
[1762635829007,0.0487531,102140.0,102130.0,0.63151169]
[1762635829216,0.0718331,102140.0,102130.0,0.63151169]
[1762635830008,0.0718331,102140.0,102130.0,0.68430329]
[1762635830512,0.05023702,102140.0,102130.0,0.83252958]
[1762635833516,0.02715702,102140.0,102130.0,0.83252958]
[1762635834006,0.00414702,102140.0,102130.0,0.83252958]
[1762635835116,0.40689,102160.0,102150.0,0.1555366]
[1762635835316,0.42846189,102160.0,102150.0,0.3038366]
[1762635836518,0.43346189,102160.0,102150.0,0.3038366]
[1762635837117,0.07666189,102160.0,102150.0,0.3038366]
[1762635837914,0.07666189,102160.0,102150.0,0.41891898]
[1762635838521,0.07666189,102160.0,102150.0,0.3038366]
[1762635838915,0.07666189,102160.0,102150.0,0.41891898]
[1762635839120,0.07666189,102160.0,102150.0,0.77971898]
[1762635839514,0.05509,102160.0,102150.0,0.77971898]
[1762635840421,0.05109,102160.0,102150.0,0.78071898]
[1762635840815,0.005,102160.0,102150.0,0.78071898]
[1762635841016,0.40551,102170.0,102160.0,0.154917]
[1762635841217,0.42706578,102170.0,102160.0,0.154917]
[1762635841425,0.42706578,102170.0,102160.0,0.303217]
[1762635841626,0.02155578,102170.0,102160.0,0.41829938]
[1762635842123,0.04310578,102170.0,102160.0,0.41829938]
[1762635842324,0.04471,102170.0,102160.0,0.41829938]
[1762635844120,0.40551,102180.0,102170.0,0.1549074]
[1762635844313,0.42701285,102180.0,102170.0,0.1549074]
[1762635844919,0.52491065,102180.0,102170.0,0.1549074]
[1762635845225,0.52591065,102180.0,102170.0,0.1549074]
[1762635845418,0.52691065,102180.0,102170.0,0.3032074]
[1762635848323,0.42901285,102180.0,102170.0,0.3032074]
[1762635849520,0.06821285,102180.0,102170.0,0.3032074]
[1762635849920,0.06821285,102180.0,102170.0,0.3816414]
[1762635850316,0.06821285,102180.0,102170.0,0.49672378]
[1762635851122,0.06821285,102180.0,102170.0,0.3816414]
[1762635854927,0.16611065,102180.0,102170.0,0.3816414]
[1762635855129,0.16609886,102180.0,102170.0,0.3816414]
[1762635858134,0.06820106,102180.0,102170.0,0.3816414]
[1762635859433,0.16609886,102180.0,102170.0,0.3816414]
[1762635859633,0.52689886,102180.0,102170.0,0.3816414]
[1762635860634,0.52689886,102180.0,102170.0,0.226734]
[1762635860635,0.65372124,102180.0,102170.0,0.226734]
[1762635860834,0.76880362,102180.0,102170.0,0.226734]
[1762635861021,0.65372124,102180.0,102170.0,0.226734]
[1762635865941,0.65372124,102180.0,102170.0,0.078434]
[1762635866236,0.1407574,102170.0,102160.0,0.30290732]
[1762635866430,0.65064084,102170.0,102160.0,0.28944732]
[1762635867535,0.65064084,102170.0,102160.0,0.19153702]
[1762635868039,0.68590774,102170.0,102160.0,0.00014702]
[1762635868243,0.85075124,102170.0,102160.0,0.00014702]
[1762635868835,0.152187,102160.0,102150.0,0.1483]
[1762635869046,0.6847654,102160.0,102150.0,0.1483]
[1762635870436,0.6867654,102160.0,102150.0,0.1483]
[1762635871244,0.65156044,102160.0,102150.0,0.1483]
[1762635871945,0.1525666,102150.0,102140.0,0.30452162]
[1762635872146,0.64994004,102150.0,102140.0,0.30452162]
[1762635876750,0.64994004,102150.0,102140.0,0.29085162]
[1762635878449,0.64994004,102150.0,102140.0,0.30426162]
[1762635879555,0.62844898,102150.0,102140.0,0.30426162]
[1762635886249,0.65000669,102150.0,102140.0,0.30426162]
[1762635892367,0.65002135,102150.0,102140.0,0.30426162]
[1762635892553,0.17955475,102150.0,102140.0,0.41935866]
[1762635896264,0.17955475,102150.0,102140.0,0.47215026]
[1762635898557,0.17955475,102150.0,102140.0,0.83295026]
[1762635899666,0.17955475,102150.0,102140.0,0.47215026]
[1762635901068,0.17955475,102150.0,102140.0,0.83295026]
[1762635901265,0.17955475,102150.0,102140.0,0.47215026]
[1762635901970,0.64965135,102150.0,102140.0,0.32209322]
[1762635902159,0.64965135,102150.0,102140.0,0.34444322]
[1762635903365,0.65165135,102150.0,102140.0,0.34444322]
[1762635905358,0.55372475,102150.0,102140.0,0.34444322]
[1762635905564,0.55372475,102150.0,102140.0,0.35790322]
[1762635905771,0.65165135,102150.0,102140.0,0.35790322]
[1762635906363,0.55372475,102150.0,102140.0,0.35790322]
[1762635909573,0.65165135,102150.0,102140.0,0.35790322]
[1762635915177,0.54235475,102150.0,102140.0,0.35790322]
[1762635915577,0.18155475,102150.0,102140.0,0.35790322]
[1762635916371,0.64028135,102150.0,102140.0,0.35790322]
[1762635926791,0.18155475,102150.0,102140.0,0.35790322]
[1762635933690,0.64028135,102150.0,102140.0,0.35790322]
[1762635938491,0.65165135,102150.0,102140.0,0.35790322]
[1762635938694,0.65165135,102150.0,102140.0,0.30511162]
[1762635939390,0.65165135,102150.0,102140.0,0.29165162]
[1762635939594,0.65165135,102150.0,102140.0,0.34444322]
[1762635940190,0.65165135,102150.0,102140.0,0.29165162]
[1762635945200,0.65165135,102150.0,102140.0,0.14335162]
[1762635946992,0.65165135,102150.0,102140.0,0.04541702]
[1762635947197,0.65165135,102150.0,102140.0,0.14335322]
[1762635951210,0.65165135,102150.0,102140.0,0.15723322]
[1762635952308,0.65165835,102150.0,102140.0,0.15723322]
[1762635958402,0.65165835,102150.0,102140.0,0.14335322]
[1762635960507,1.00106064,102150.0,102140.0,0.00014702]
[1762635961002,0.96611209,102150.0,102140.0,0.00014702]
[1762635961412,0.1552856,102130.0,102120.0,0.7584105]
[1762635961608,0.65300376,102130.0,102120.0,0.7584105]
[1762635961912,0.65300376,102130.0,102120.0,0.7056189]
[1762635962519,0.65300376,102130.0,102120.0,0.7066189]
[1762635962907,0.65300376,102130.0,102120.0,0.7086189]
[1762635963110,0.65300376,102130.0,102120.0,0.1601789]
[1762635963717,0.65300376,102130.0,102120.0,0.1591789]
[1762635963920,0.65300376,102130.0,102120.0,0.1571789]
[1762635964910,0.65300376,102130.0,102120.0,0.23566696]
[1762635967914,0.65300376,102130.0,102120.0,0.22221336]
[1762635970525,0.1549052,102120.0,102110.0,0.15728582]
[1762635970725,0.65262336,102120.0,102110.0,0.15728582]
[1762635971826,0.65262336,102120.0,102110.0,0.14387582]
[1762635972519,0.65262336,102120.0,102110.0,0.14587582]
[1762635973116,0.65262336,102120.0,102110.0,0.14387582]
[1762635974524,0.65262336,102120.0,102110.0,0.23702643]
[1762635980432,0.65262336,102120.0,102110.0,0.38532643]
[1762635984527,0.65262336,102120.0,102110.0,0.28736763]
[1762635985838,0.65262336,102120.0,102110.0,0.38533253]
[1762635992940,0.65262336,102120.0,102110.0,0.15714192]
[1762635994337,0.65262336,102120.0,102110.0,0.14388192]
[1762636012444,0.76786276,102120.0,102110.0,0.14388192]
[1762636016149,0.40706276,102120.0,102110.0,0.14388192]
[1762636016350,0.76786276,102120.0,102110.0,0.14388192]
[1762636016551,0.80309725,102120.0,102110.0,0.14388192]
[1762636016750,0.76786276,102120.0,102110.0,0.14388192]
[1762636017450,0.76786276,102120.0,102110.0,0.04591702]
[1762636017845,0.76786276,102120.0,102110.0,0.14388182]
[1762636021649,0.94908681,102120.0,102110.0,0.00014702]
[1762636021851,0.94908681,102120.0,102090.0,0.07490304]
[1762636021852,0.1527444,102100.0,102090.0,0.07490304]
[1762636022043,0.76570196,102100.0,102090.0,9.144e-05]
[1762636022248,0.20979301,102100.0,102090.0,9.144e-05]
[1762636022451,0.76570196,102100.0,102090.0,9.144e-05]
[1762636022855,0.80093645,102100.0,102090.0,9.144e-05]
[1762636023160,0.57059301,102100.0,102090.0,9.144e-05]
[1762636023450,0.96559724,102100.0,102090.0,0.00209144]
[1762636023658,1.06250364,102100.0,102090.0,0.00209144]
[1762636023857,1.11540399,102100.0,102090.0,0.00209144]
[1762636024153,1.06250364,102100.0,102090.0,0.00209144]
[1762636024353,1.06250364,102100.0,102090.0,0.00309144]
[1762636025555,1.06293119,102100.0,102090.0,0.00309144]
[1762636026649,1.11615169,102100.0,102090.0,0.00309144]
[1762636026854,1.06293119,102100.0,102090.0,0.00309144]
[1762636029459,1.0276967,102100.0,102090.0,0.00309144]
[1762636029852,1.06293119,102100.0,102090.0,0.00309144]
[1762636030353,1.0276967,102100.0,102090.0,0.00309144]
[1762636031747,1.06293119,102100.0,102090.0,0.00309144]
[1762636032362,1.0276967,102100.0,102090.0,0.00309144]
[1762636032862,0.91252498,102100.0,102090.0,0.00309144]
[1762636036050,1.0276967,102100.0,102090.0,0.00309144]
[1762636037449,1.06293119,102100.0,102090.0,0.00309144]
[1762636040159,0.150174,102090.0,102080.0,0.00014702]
[1762636040359,0.76355911,102090.0,102080.0,0.00014702]
[1762636041660,0.76355911,102090.0,102080.0,0.00314702]
[1762636042160,0.76355911,102090.0,102080.0,0.00514702]
[1762636042366,0.76355911,102090.0,102080.0,0.02642702]
[1762636042752,0.76355911,102090.0,102080.0,0.04896702]
[1762636042958,0.64838739,102090.0,102080.0,0.04896702]
[1762636043161,0.64838739,102090.0,102080.0,0.14696072]
[1762636043360,0.64838739,102090.0,102080.0,0.04896702]
[1762636043560,0.76355911,102090.0,102080.0,0.04896702]
[1762636043762,0.56829567,102090.0,102080.0,0.04896702]
[1762636044069,0.57644339,102090.0,102080.0,0.27570244]
[1762636044771,0.57644339,102090.0,102080.0,0.16053072]
[1762636044962,0.68655739,102090.0,102080.0,0.14696062]
[1762636047870,0.68655739,102090.0,102080.0,0.16066062]
[1762636049163,1.04735739,102090.0,102080.0,0.16066062]
[1762636051670,1.08259188,102090.0,102080.0,0.16066062]
[1762636054964,0.97247788,102090.0,102080.0,0.16066062]
[1762636055165,0.97247788,102090.0,102080.0,0.27583234]
[1762636055665,0.82207167,102090.0,102080.0,0.27583234]
[1762636058376,0.46127167,102090.0,102080.0,0.27583234]
[1762636059579,0.46127167,102090.0,102080.0,0.42413234]
[1762636062886,0.46127167,102090.0,102080.0,0.27583234]
[1762636062887,0.10047167,102090.0,102080.0,0.27583234]
[1762636063092,0.10047167,102090.0,102080.0,0.63663234]
[1762636066582,0.05732167,102090.0,102080.0,0.99668406]
[1762636066786,7.035e-05,102100.0,102090.0,0.1480841]
[1762636066982,7.035e-05,102100.0,102090.0,0.62405582]
[1762636067189,7.035e-05,102100.0,102090.0,1.05433071]
[1762636067391,0.00014702,102110.0,102100.0,0.1545845]
[1762636067700,0.00014702,102110.0,102100.0,0.38492794]
[1762636067892,0.00014702,102110.0,102100.0,0.74572794]
[1762636068991,0.00014702,102110.0,102100.0,0.99056794]
[1762636069602,0.00014702,102110.0,102100.0,0.74572794]
[1762636070100,0.00014702,102110.0,102100.0,0.99056794]
[1762636070493,0.00014702,102110.0,102100.0,0.99156794]
[1762636070696,0.00014702,102110.0,102100.0,0.99256794]
[1762636072099,0.00014702,102110.0,102100.0,0.74772794]
[1762636072300,0.41695,102130.0,102120.0,0.1412452]
[1762636073606,0.41995,102130.0,102120.0,0.1412452]
[1762636075008,0.5178956,102130.0,102120.0,0.1412452]
[1762636076106,0.63302527,102130.0,102120.0,0.1412452]
[1762636076808,0.53507967,102130.0,102120.0,0.1412452]
[1762636078811,0.55745894,102130.0,102120.0,0.1412452]
[1762636081611,0.44232927,102130.0,102120.0,0.1548152]
[1762636083007,0.41995,102130.0,102120.0,0.3031152]
[1762636083711,0.40782,102130.0,102120.0,0.3031152]
[1762636084009,0.04702,102130.0,102120.0,0.3031152]
[1762636084908,0.04602,102130.0,102120.0,0.3031152]
[1762636085109,0.04502,102130.0,102120.0,0.3031152]
[1762636085411,0.04502,102130.0,102120.0,0.6639152]
[1762636091323,0.06728533,102130.0,102120.0,0.6639152]
[1762636091915,0.06728533,102130.0,102120.0,0.3031152]
[1762636094107,0.07994533,102130.0,102120.0,0.3031152]
[1762636094310,0.53869093,102130.0,102120.0,0.3031152]
[1762636094822,0.44074533,102130.0,102120.0,0.3031152]
[1762636098616,0.53869093,102130.0,102120.0,0.3031152]
[1762636098817,0.53869093,102130.0,102120.0,0.2683952]
[1762636099027,0.53869093,102130.0,102120.0,0.2914252]
[1762636099227,0.555875,102130.0,102120.0,0.2914252]
[1762636102525,0.6538206,102130.0,102120.0,0.2914252]
[1762636102730,0.555875,102130.0,102120.0,0.2914252]
[1762636103230,0.6538206,102130.0,102120.0,0.2914252]
[1762636103424,0.555875,102130.0,102120.0,0.2914252]
[1762636106729,0.195075,102130.0,102120.0,0.2914252]
[1762636107131,0.195075,102130.0,102120.0,0.3050552]
[1762636108231,0.07994533,102130.0,102120.0,0.3050552]
[1762636110630,0.53869093,102130.0,102120.0,0.2914252]
[1762636110825,0.6538206,102130.0,102120.0,0.2462552]
[1762636111427,0.6538206,102130.0,102120.0,0.2683952]
[1762636111731,0.6538206,102130.0,102120.0,0.2895452]
[1762636112629,0.68905509,102130.0,102120.0,0.1483]
[1762636112822,0.68905509,102130.0,102110.0,0.00014702]
[1762636112823,0.1545452,102120.0,102110.0,0.00014702]
[1762636113028,0.76786987,102120.0,102110.0,0.09811172]
[1762636113236,0.6527402,102120.0,102110.0,0.09811172]
[1762636113434,0.6527402,102120.0,102110.0,0.00014702]
[1762636113435,0.80310436,102120.0,102110.0,0.00014702]
[1762636113635,0.94904409,102120.0,102110.0,0.00014702]
[1762636113834,0.83391442,102120.0,102110.0,0.00014702]
[1762636114032,0.83391442,102120.0,102110.0,0.00114702]
[1762636114232,0.94904409,102120.0,102110.0,0.00114702]
[1762636115531,0.94904409,102120.0,102110.0,0.00014702]
[1762636115732,0.95004409,102120.0,102110.0,0.00014702]
[1762636116334,0.95204409,102120.0,102110.0,0.00014702]
[1762636119938,0.95204409,102120.0,102110.0,0.09811182]
[1762636120332,0.95204409,102120.0,102110.0,0.00014702]
[1762636120638,0.83691442,102120.0,102110.0,0.09811182]
[1762636121840,0.83691442,102120.0,102110.0,0.00014702]
[1762636125146,0.80167993,102120.0,102110.0,0.00014702]
[1762636125837,0.83691442,102120.0,102110.0,0.00014702]
[1762636126940,0.83691442,102120.0,102110.0,0.02228702]
[1762636127145,0.83691442,102120.0,102110.0,0.00014702]
[1762636127637,0.83691442,102120.0,102110.0,0.02138702]
[1762636128740,0.83691442,102120.0,102110.0,0.00014702]
[1762636128941,0.83691442,102120.0,102110.0,0.04466702]
[1762636129242,0.83691442,102120.0,102110.0,0.02138702]
[1762636129434,0.83691442,102120.0,102110.0,0.00014702]
[1762636130340,0.95204409,102120.0,102110.0,0.00014702]
[1762636133444,1.31284409,102120.0,102110.0,0.00014702]
[1762636134343,1.31295413,102120.0,102110.0,0.00014702]
[1762636135844,1.31295413,102120.0,102110.0,0.09811172]
[1762636136235,1.31295413,102120.0,102110.0,0.11935172]
[1762636136844,1.31295413,102120.0,102110.0,0.09811172]
[1762636137547,1.31295413,102120.0,102110.0,0.00014702]
[1762636137843,1.31295413,102120.0,102110.0,0.02217702]
[1762636138046,1.31295413,102120.0,102110.0,0.14340182]
[1762636139243,1.36585448,102120.0,102110.0,0.14340182]
[1762636139445,1.36585448,102120.0,102110.0,0.09811182]
[1762636139644,1.36585448,102120.0,102110.0,0.00014702]
[1762636139834,1.36585448,102120.0,102110.0,0.09811182]
[1762636140645,1.36602732,102120.0,102110.0,0.09811182]
[1762636142447,1.33079283,102120.0,102110.0,0.09811182]
[1762636144752,1.33079283,102120.0,102110.0,0.12014182]
[1762636146451,1.33079283,102120.0,102110.0,0.02217702]
[1762636146748,1.33079283,102120.0,102110.0,0.09811172]
[1762636147553,1.33079283,102120.0,102110.0,0.00014702]
[1762636148053,1.33079283,102120.0,102110.0,0.09811182]
[1762636148756,1.33079283,102120.0,102110.0,0.12014182]
[1762636149157,1.33079283,102120.0,102110.0,0.09811182]
[1762636154746,1.33079283,102120.0,102110.0,0.11921182]
[1762636156865,1.33079283,102120.0,102110.0,0.14092182]
[1762636157161,1.33079283,102120.0,102110.0,0.11921182]
[1762636157862,1.33079283,102120.0,102110.0,0.14092182]
[1762636158063,0.60919283,102120.0,102110.0,0.11921182]
[1762636158265,1.33079283,102120.0,102110.0,0.11921182]
[1762636159563,1.33079283,102120.0,102110.0,0.14092182]
[1762636161865,1.33079283,102120.0,102110.0,0.11921182]
[1762636170171,1.33079283,102120.0,102110.0,0.00014702]
[1762636174273,1.33079283,102120.0,102110.0,0.09811182]
[1762636175473,1.33079283,102120.0,102110.0,0.14132182]
[1762636178667,0.96999283,102120.0,102110.0,0.14132182]
[1762636178874,1.33079283,102120.0,102110.0,0.14132182]
[1762636183981,1.31316446,102120.0,102110.0,0.14132182]
[1762636188292,1.36606481,102120.0,102110.0,0.14132182]
[1762636194682,1.26810961,102120.0,102110.0,0.14132182]
[1762636194886,1.36606481,102120.0,102110.0,0.14132182]
[1762636195387,1.00526481,102120.0,102110.0,0.14132182]
[1762636195779,0.90730961,102120.0,102110.0,0.14132182]
[1762636195980,1.00526481,102120.0,102110.0,0.14132182]
[1762636196187,0.95236446,102120.0,102110.0,0.14132182]
[1762636196386,0.8371606,102120.0,102110.0,0.14132182]
[1762636196885,0.89006095,102120.0,102110.0,0.14132182]
[1762636199589,0.79210575,102120.0,102110.0,0.14132182]
[1762636204688,0.47810015,102120.0,102110.0,0.14132182]
[1762636204883,0.06873817,102120.0,102110.0,0.51504734]
[1762636205087,0.06873817,102120.0,102110.0,0.87584734]
[1762636205390,0.02543817,102120.0,102110.0,0.87584734]
[1762636205592,0.02543817,102120.0,102110.0,0.63100734]
[1762636206091,0.02543817,102120.0,102110.0,0.87584734]
[1762636206291,0.02543817,102120.0,102110.0,0.63100734]
[1762636206492,0.02343817,102120.0,102110.0,0.87584734]
[1762636206691,0.02343817,102120.0,102110.0,0.63100734]
[1762636206990,0.02343817,102120.0,102110.0,0.87584734]
[1762636207192,0.52842254,102140.0,102130.0,0.1421456]
[1762636207491,0.56369452,102140.0,102130.0,0.1421456]
[1762636208392,0.62735854,102140.0,102130.0,0.1421456]
[1762636208785,0.52942254,102140.0,102130.0,0.1421456]
[1762636209385,0.53142254,102140.0,102130.0,0.1421456]
[1762636210084,0.41625702,102140.0,102130.0,0.1557756]
[1762636210688,0.41625702,102140.0,102130.0,0.27094112]
[1762636210993,0.04641702,102140.0,102130.0,0.63174112]
[1762636211784,0.04541702,102140.0,102130.0,0.63174112]
[1762636212197,0.04341702,102140.0,102130.0,0.63174112]
[1762636212395,0.04441702,102140.0,102130.0,0.63174112]
[1762636213697,0.04441702,102140.0,102130.0,0.5165756]
[1762636215404,0.04441702,102140.0,102130.0,0.59312081]
[1762636215607,0.05784702,102140.0,102130.0,0.59312081]
[1762636215808,0.41864702,102140.0,102130.0,0.23232081]
[1762636218906,0.41864702,102140.0,102130.0,0.78084081]
[1762636219498,0.63174854,102140.0,102130.0,0.21869081]
[1762636219807,0.44092382,102140.0,102130.0,0.21869081]
[1762636220108,0.53381254,102140.0,102130.0,0.21869081]
[1762636220911,0.05784702,102140.0,102130.0,0.21869081]
[1762636221503,0.41864702,102140.0,102130.0,0.21869081]
[1762636224411,0.53886465,102140.0,102130.0,0.21869081]
[1762636224913,0.65403017,102140.0,102130.0,0.21869081]
[1762636229313,0.55609417,102140.0,102130.0,0.21869081]
[1762636230813,0.65403017,102140.0,102130.0,0.21869081]
[1762636231016,0.55609417,102140.0,102130.0,0.21869081]
[1762636232320,0.65403017,102140.0,102130.0,0.21869081]
[1762636245133,0.68930215,102140.0,102130.0,0.21869081]
[1762636246533,0.65403017,102140.0,102130.0,0.21869081]
[1762636246833,0.55609417,102140.0,102130.0,0.21869081]
[1762636252234,0.19529417,102140.0,102130.0,0.21869081]
[1762636252539,0.55609417,102140.0,102130.0,0.21869081]
[1762636252929,0.65403017,102140.0,102130.0,0.21869081]
[1762636255842,0.68930215,102140.0,102130.0,0.21869081]
[1762636257049,0.68930215,102140.0,102130.0,0.0979456]
[1762636257342,0.65403017,102140.0,102130.0,0.0979456]
[1762636258140,0.05998,102120.0,102110.0,0.00014702]
[1762636258345,0.77139661,102120.0,102110.0,0.09811182]
[1762636259843,0.77139661,102120.0,102110.0,0.00414702]
[1762636260043,0.05998,102110.0,102100.0,0.0979667]
[1762636260233,0.65650256,102110.0,102100.0,0.0979667]
[1762636261740,0.65650256,102110.0,102100.0,0.1204667]
[1762636261937,0.65650256,102110.0,102100.0,0.1427667]
[1762636262447,0.65650256,102110.0,102100.0,0.1437667]
[1762636271049,0.69679256,102110.0,102100.0,0.1437667]
[1762636272752,0.69679256,102110.0,102100.0,0.1214667]
[1762636273452,0.6970705,102110.0,102100.0,0.1214667]
[1762636274852,0.6970705,102110.0,102100.0,0.1446267]
[1762636280354,0.5991057,102110.0,102100.0,0.1446267]
[1762636282053,0.6970705,102110.0,102100.0,0.1446267]
[1762636284656,0.5991057,102110.0,102100.0,0.1446267]
[1762636288360,0.63437768,102110.0,102100.0,0.1446267]
[1762636289251,0.51918779,102110.0,102100.0,0.27282659]
[1762636289452,0.12311581,102110.0,102100.0,0.27282659]
[1762636291865,0.12311581,102110.0,102100.0,0.63362659]
[1762636294163,0.12311581,102110.0,102100.0,0.78192659]
[1762636295065,0.10959581,102110.0,102100.0,0.78192659]
[1762636295759,0.06313581,102110.0,102100.0,0.89711648]
[1762636295960,0.06313581,102110.0,102100.0,1.14195648]
[1762636296163,0.00014702,102120.0,102110.0,0.1530448]
[1762636296361,0.00014702,102120.0,102110.0,0.62903469]
[1762636296559,0.02296916,102120.0,102110.0,0.62903469]
[1762636296767,0.02296916,102120.0,102110.0,1.02217469]
[1762636296962,0.00014702,102120.0,102110.0,1.02217469]
[1762636297359,0.00114702,102120.0,102110.0,1.02217469]
[1762636298471,0.00314702,102120.0,102110.0,1.02217469]
[1762636298667,0.00314702,102120.0,102110.0,0.77733469]
[1762636298867,0.00314702,102120.0,102110.0,1.02217469]
[1762636299073,0.00114702,102120.0,102110.0,1.02217469]
[1762636299272,0.00014702,102120.0,102110.0,1.02317469]
[1762636300572,0.00014702,102120.0,102110.0,1.13836458]
[1762636301263,0.53375989,102140.0,102130.0,0.1529856]
[1762636301465,0.55653106,102140.0,102130.0,0.26817549]
[1762636301964,0.55653106,102140.0,102130.0,0.1529856]
[1762636302168,0.65446706,102140.0,102130.0,0.1529856]
[1762636302472,0.77165695,102140.0,102130.0,0.1403556]
[1762636302770,0.77465695,102140.0,102130.0,0.1403556]
[1762636302965,0.65946706,102140.0,102130.0,0.1403556]
[1762636303875,0.77465695,102140.0,102130.0,0.1403556]
[1762636304678,0.77464495,102140.0,102130.0,0.1403556]
[1762636306697,0.77464495,102140.0,102130.0,0.21851476]
[1762636318302,0.65938384,102140.0,102130.0,0.21851476]
[1762636320200,0.56144784,102140.0,102130.0,0.21851476]
[1762636320805,0.44632917,102140.0,102130.0,0.21851476]
[1762636322103,0.54426517,102140.0,102130.0,0.21851476]
[1762636323005,0.65938384,102140.0,102130.0,0.21851476]
[1762636324499,0.56144784,102140.0,102130.0,0.21851476]
[1762636325406,0.69465592,102140.0,102130.0,0.21851476]
[1762636326904,0.69465592,102140.0,102130.0,0.0979457]
[1762636327207,0.74755627,102140.0,102130.0,0.0979457]
[1762636327395,0.05732,102130.0,102120.0,0.26960582]
[1762636327599,0.65394344,102130.0,102120.0,0.24639582]
[1762636328103,0.65394344,102130.0,102120.0,0.26960582]
[1762636329205,0.65494344,102130.0,102120.0,0.26960582]
[1762636329408,0.65494344,102130.0,102120.0,0.12130582]
[1762636329606,0.65694344,102130.0,102120.0,0.12130582]
[1762636329807,0.65694344,102130.0,102120.0,0.14254582]
[1762636332508,0.55899784,102130.0,102120.0,0.14254582]
[1762636333015,0.44387917,102130.0,102120.0,0.14254582]
[1762636334303,0.54182477,102130.0,102120.0,0.14254582]
[1762636334507,0.44387917,102130.0,102120.0,0.14254582]
[1762636335710,0.55899784,102130.0,102120.0,0.14254582]
[1762636336518,0.44387917,102130.0,102120.0,0.14254582]
[1762636337318,0.54182477,102130.0,102120.0,0.14254582]
[1762636337619,0.44387917,102130.0,102120.0,0.14254582]
[1762636337918,0.54182477,102130.0,102120.0,0.14254582]
[1762636338617,0.65694344,102130.0,102120.0,0.14254582]
[1762636341320,0.65693312,102130.0,102120.0,0.14254582]
[1762636349427,0.55898752,102130.0,102120.0,0.14254582]
[1762636351229,0.44386885,102130.0,102120.0,0.14254582]
[1762636351427,0.44386885,102130.0,102120.0,0.15611582]
[1762636351628,0.44386885,102130.0,102120.0,0.14254582]
[1762636352422,0.44386885,102130.0,102120.0,0.15491582]
[1762636354920,0.08306885,102130.0,102120.0,0.15491582]
[1762636355121,0.08306885,102130.0,102120.0,0.14254582]
[1762636355733,0.44386885,102130.0,102120.0,0.14254582]
[1762636356332,0.08306885,102130.0,102120.0,0.14254582]
[1762636359334,0.18101455,102130.0,102120.0,0.14254582]
[1762636360132,0.54181455,102130.0,102120.0,0.14254582]
[1762636360935,0.08306885,102130.0,102120.0,0.14254582]
[1762636366440,0.18101445,102130.0,102120.0,0.14254582]
[1762636366633,0.08306885,102130.0,102120.0,0.14254582]
[1762636367542,0.18101445,102130.0,102120.0,0.14254582]
[1762636367844,0.54181445,102130.0,102120.0,0.14254582]
[1762636368342,0.65693312,102130.0,102120.0,0.14254582]
[1762636372047,0.65693312,102130.0,102120.0,0.12130582]
[1762636372253,0.65693312,102130.0,102120.0,0.09809582]
[1762636376646,0.65693312,102130.0,102120.0,0.00014702]
[1762636376851,0.74510545,102130.0,102120.0,0.00014702]
[1762636378157,0.6922051,102130.0,102120.0,0.00014702]
[1762636378955,0.74510545,102130.0,102120.0,0.00014702]
[1762636379160,0.74510545,102130.0,102110.0,0.2462595]
[1762636379161,0.1547454,102120.0,102110.0,0.0979595]
[1762636379362,0.65341292,102120.0,102110.0,0.0979595]
[1762636380461,0.76864509,102120.0,102110.0,0.0979595]
[1762636380954,0.76864509,102120.0,102110.0,0.0989595]
[1762636381760,0.1547549,102110.0,102100.0,0.29077142]
[1762636381962,0.65347917,102110.0,102100.0,0.29077142]
[1762636382259,0.65347917,102110.0,102100.0,0.14247142]
[1762636382449,0.53830375,102110.0,102100.0,0.14247142]
[1762636382646,0.65347917,102110.0,102100.0,0.14247142]
[1762636384052,0.65347917,102110.0,102100.0,0.14347142]
[1762636384462,0.55551427,102110.0,102100.0,0.14347142]
[1762636385153,0.19471427,102110.0,102100.0,0.14347142]
[1762636385353,0.55551427,102110.0,102100.0,0.14347142]
[1762636385553,0.65347927,102110.0,102100.0,0.14347142]
[1762636387961,0.65347927,102110.0,102100.0,0.29177142]
[1762636388966,0.29267927,102110.0,102100.0,0.29177142]
[1762636389162,0.65347927,102110.0,102100.0,0.29177142]
[1762636389457,0.29267927,102110.0,102100.0,0.29177142]
[1762636389663,0.65347927,102110.0,102100.0,0.29177142]
[1762636393467,0.63073042,102110.0,102100.0,0.29177142]
[1762636393768,0.65341428,102110.0,102100.0,0.29177142]
[1762636396367,0.29261428,102110.0,102100.0,0.29177142]
[1762636396567,0.65341428,102110.0,102100.0,0.29177142]
[1762636396864,0.19464928,102110.0,102100.0,0.29177142]
[1762636397068,0.29261438,102110.0,102100.0,0.29177142]
[1762636397270,0.65341438,102110.0,102100.0,0.29177142]
[1762636398271,0.29261438,102110.0,102100.0,0.29177142]
[1762636398571,0.19464928,102110.0,102100.0,0.29177142]
[1762636400973,0.19464928,102110.0,102100.0,0.40694684]
[1762636402564,0.19464928,102110.0,102100.0,0.29177142]
[1762636402765,0.19464928,102110.0,102100.0,0.40694684]
[1762636404474,0.29261458,102110.0,102100.0,0.40694684]
[1762636406678,0.19464928,102110.0,102100.0,0.40694684]
[1762636408072,0.19464928,102110.0,102100.0,0.41913684]
[1762636408272,0.18112928,102110.0,102100.0,0.41913684]
[1762636408980,0.18112928,102110.0,102100.0,0.77993684]